[Event "GER-chT Youth Countries 2019"]
[Site "Wuerzburg"]
[Date "2019.10.02"]
[Round "1"]
[White "Schneider, Jana"]
[Black "Junker, Magnus"]
[Result "1/2-1/2"]
[ECO "B90"]
[WhiteElo "2240"]
[BlackElo "2059"]
[Annotator "NA"]
[PlyCount "67"]
[EventDate "2019.10.02"]
[EventType "swiss"]
[EventRounds "7"]
[EventCountry "GER"]
[SourceTitle "playchess.com"]
[Source "ChessBase"]
[SourceQuality "1"]
[WhiteTeam "Bayern 1"]
[BlackTeam "Bayern 2"]
[WhiteTeamCountry "GER"]
[BlackTeamCountry "GER"]
[TimeControl "40/5400+30:1800+30"]

1. e4 {[%emt 0:00:00]} c5 {[%emt 0:00:00]} 2. Nf3 {[%emt 0:00:00]} d6 {[%emt 0:00:00]} 3. d4 {[%emt 0:00:00]} cxd4 {[%emt 0:00:00]} 4. Nxd4 {[%emt 0:00:00]} Nf6 {[%emt 0:00:01]} 5. Nc3 {[%emt 0:00:04]} a6 {[%emt 0:00:11]} 6. Be3 {[%emt 0:00:11]} Nbd7 {[%emt 0:00:23]} 7. Be2 {[%emt 0:05:47]} e6 {[%emt 0:00:15]} 8. f4 {[%emt 0:01:25]} Qc7 {[%emt 0:00:23]} 9. g4 {[%emt 0:19:31]} e5 {[%emt 0:07:59]} 10. Nf5 {[%emt 0:02:59]} Nc5 {[%emt 0:04:13]} 11. Bf3 {[%emt 0:11:02]} h5 {[%emt 0:02:09]} 12. g5 {[%emt 0:01:31]} Nfxe4 {[%emt 0:00:22]} 13. Bxe4 {[%emt 0:02:34]} Nxe4 {[%emt 0:00:14]} 14. Nxg7+ {[%emt 0:00:23]} Bxg7 {[%emt 0:00:32]} 15. Nxe4 {[%emt 0:00:08]} Qc6 {[%emt 0:10:23]} 16. Qd3 {[%emt 0:11:55]} Bg4 {[%emt 0:07:20]} 17. h3 {[%emt 0:11:14]} Bf3 {[%emt 0:02:49]} 18. Nxd6+ {[%emt 0:00:08]} Kf8 {[%emt 0:00:41]} 19. Rf1 {[%emt 0:00:50]} Rd8 {[%emt 0:12:34]} 20. Qa3 {[%emt 0:02:40]} Kg8 {[%emt 0:03:28]} 21. Nf5 {[%emt 0:01:29]} Qe4 {[%emt 0:05:55]} 22. Qe7 {[%emt 0:04:01]} Qxf5 {[%emt 0:04:49]} 23. Qxd8+ {[%emt 0:02:20]} Kh7 {[%emt 0:00:05]} 24. Qd2 {[%emt 0:01:03]} Qxh3 {[%emt 0:03:05]} 25. fxe5 {[%emt 0:01:42]} Re8 {[%emt 0:05:23]} 26. Qf2 {[%emt 0:03:17]} Bg4 {[%emt 0:01:25]} 27. Bd4 {[%emt 0:02:36]} Rd8 {[%emt 0:05:51]} 28. c3 {[%emt 0:02:32]} Qd3 {[%emt 0:00:53]} 29. Rc1 {[%emt 0:02:42]} Kh8 {[%emt 0:07:38]} 30. Qd2 {[%emt 0:01:17]} Qg3+ {[%emt 0:02:22]} 31. Qf2 {[%emt 0:00:20]} Qd3 {[%emt 0:00:05]} 32. Qd2 {[%emt 0:06:27]} Qg3+ {[%emt 0:00:13]} 33. Qf2 {[%emt 0:00:29]} Qd3 {[%emt 0:00:18]} 34. Qd2 {[%emt 0:01:25] normal} 1/2-1/2

[Event "GER-chT Youth Countries 2019"]
[Site "Wuerzburg"]
[Date "2019.10.02"]
[Round "1"]
[White "Niermann, Tristan"]
[Black "Yi, Danny"]
[Result "1-0"]
[ECO "D74"]
[WhiteElo "2227"]
[BlackElo "2211"]
[Annotator "NA"]
[PlyCount "63"]
[EventDate "2019.10.02"]
[EventType "swiss"]
[EventRounds "7"]
[EventCountry "GER"]
[SourceTitle "playchess.com"]
[Source "ChessBase"]
[SourceQuality "1"]
[WhiteTeam "Nordrhein-Westfalen"]
[BlackTeam "Team Süd"]
[WhiteTeamCountry "GER"]
[BlackTeamCountry "GER"]
[TimeControl "40/5400+30:1800+30"]

1. d4 {[%emt 0:00:00]} Nf6 {[%emt 0:00:00]} 2. c4 {[%emt 0:00:00]} g6 {[%emt 0:01:09]} 3. g3 {[%emt 0:00:00]} Bg7 {[%emt 0:00:42]} 4. Bg2 {[%emt 0:00:04]} d5 {[%emt 0:00:45]} 5. cxd5 {[%emt 0:00:25]} Nxd5 {[%emt 0:00:08]} 6. Nf3 {[%emt 0:00:15]} O-O {[%emt 0:07:20]} 7. O-O {[%emt 0:00:49]} Nc6 {[%emt 0:09:33]} 8. e3 {[%emt 0:00:54]} Nb6 {[%emt 0:09:56]} 9. Nc3 {[%emt 0:00:50]} e5 {[%emt 0:01:55]} 10. d5 {[%emt 0:04:32]} Na5 {[%emt 0:02:31]} 11. e4 {[%emt 0:22:38]} c6 {[%emt 0:03:53]} 12. h3 {[%emt 0:25:21]} cxd5 {[%emt 0:10:52]} 13. exd5 {[%emt 0:02:21]} e4 {[%emt 0:16:04]} 14. Ng5 {[%emt 0:13:55]} f5 {[%emt 0:09:46]} 15. f3 {[%emt 0:01:50]} h6 {[%emt 0:08:08]} 16. Ne6 {[%emt 0:00:33]} Bxe6 {[%emt 0:00:06]} 17. dxe6 {[%emt 0:00:03]} Qxd1 {[%emt 0:00:37]} 18. Rxd1 {[%emt 0:00:26]} exf3 {[%emt 0:00:43]} 19. Bxf3 {[%emt 0:00:27]} Rfe8 {[%emt 0:01:52]} 20. Nd5 {[%emt 0:04:14]} Rac8 {[%emt 0:02:05]} 21. Nxb6 {[%emt 0:01:26]} axb6 {[%emt 0:00:06]} 22. Bf4 {[%emt 0:04:30]} Kh8 {[%emt 0:02:32]} 23. Bd5 {[%emt 0:01:45]} Rc2 {[%emt 0:03:15]} 24. Rac1 {[%emt 0:01:34]} Re2 {[%emt 0:05:26]} 25. Rc7 {[%emt 0:04:33]} g5 {[%emt 0:01:24]} 26. Bd6 {[%emt 0:01:19]} Be5 {[%emt 0:01:33]} 27. Bxe5+ {[%emt 0:02:00]} Rxe5 {[%emt 0:00:03]} 28. b4 {[%emt 0:00:30]} Nc6 {[%emt 0:00:55]} 29. Rxb7 {[%emt 0:00:38]} Rd8 {[%emt 0:00:39]} 30. Rd7 {[%emt 0:02:08]} Rc8 {[%emt 0:00:27]} 31. Rc1 {[%emt 0:00:52]} Rd8 {[%emt 0:00:34]} 32. Bxc6 {[%emt 0:00:27] normal} 1-0

[Event "GER-chT Youth Countries 2019"]
[Site "Wuerzburg"]
[Date "2019.10.02"]
[Round "1"]
[White "Post, Hugo"]
[Black "Schumann, Rabea"]
[Result "1-0"]
[ECO "B38"]
[WhiteElo "2204"]
[BlackElo "1922"]
[Annotator "NA"]
[PlyCount "63"]
[EventDate "2019.10.02"]
[EventType "swiss"]
[EventRounds "7"]
[EventCountry "GER"]
[SourceTitle "playchess.com"]
[Source "ChessBase"]
[SourceQuality "1"]
[WhiteTeam "Sachsen-Anhalt"]
[BlackTeam "Mecklenburg-Vorpommern"]
[WhiteTeamCountry "GER"]
[BlackTeamCountry "GER"]
[TimeControl "40/5400+30:1800+30"]

1. e4 {[%emt 0:00:00]} c5 {[%emt 0:00:00]} 2. Nf3 {[%emt 0:00:00]} Nc6 {[%emt 0:00:00]} 3. d4 {[%emt 0:00:00]} cxd4 {[%emt 0:00:00]} 4. Nxd4 {[%emt 0:00:00]} g6 {[%emt 0:00:07]} 5. c4 {[%emt 0:00:15]} Bg7 {[%emt 0:00:17]} 6. Be3 {[%emt 0:00:17]} Nf6 {[%emt 0:00:21]} 7. Nc3 {[%emt 0:00:18]} O-O {[%emt 0:00:30]} 8. Be2 {[%emt 0:00:16]} b6 {[%emt 0:00:59]} 9. f3 {[%emt 0:03:03]} Bb7 {[%emt 0:00:41]} 10. O-O {[%emt 0:09:55]} d6 {[%emt 0:03:12]} 11. Rc1 {[%emt 0:05:28]} Qb8 {[%emt 0:02:26]} 12. Qd2 {[%emt 0:08:48]} Rd8 {[%emt 0:01:16]} 13. Rfd1 {[%emt 0:06:07]} Rd7 {[%emt 0:04:38]} 14. Nc2 {[%emt 0:11:09]} Qf8 {[%emt 0:06:55]} 15. b4 {[%emt 0:02:29]} e6 {[%emt 0:08:59]} 16. a3 {[%emt 0:13:09]} Rad8 {[%emt 0:02:29]} 17. f4 {[%emt 0:12:48]} Ne7 {[%emt 0:21:45]} 18. Bf3 {[%emt 0:00:24]} Nc8 {[%emt 0:21:22]} 19. Qe1 {[%emt 0:03:16]} Ne8 {[%emt 0:04:37]} 20. Nd4 {[%emt 0:01:31]} Nc7 {[%emt 0:03:12]} 21. Nb3 {[%emt 0:03:48]} Qe7 {[%emt 0:03:08]} 22. c5 {[%emt 0:04:08]} dxc5 {[%emt 0:04:09]} 23. Rxd7 {[%emt 0:00:04]} Rxd7 {[%emt 0:01:02]} 24. bxc5 {[%emt 0:00:07]} e5 {[%emt 0:05:11]} 25. Bg4 {[%emt 0:04:22]} Rd3 {[%emt 0:02:37]} 26. Bxc8 {[%emt 0:00:22]} Bxc8 {[%emt 0:00:26]} 27. cxb6 {[%emt 0:00:20]} exf4 {[%emt 0:00:52]} 28. Nd5 {[%emt 0:01:47]} Nxd5 {[%emt 0:01:49]} 29. Rxc8+ {[%emt 0:00:03]} Bf8 {[%emt 0:00:07]} 30. Bc5 {[%emt 0:00:09]} Rxb3 {[%emt 0:01:11]} 31. Bxe7 {[%emt 0:00:35]} Nxe7 {[%emt 0:00:06]} 32. bxa7 {[%emt 0:00:08] normal} 1-0

[Event "GER-chT Youth Countries 2019"]
[Site "Wuerzburg"]
[Date "2019.10.02"]
[Round "1"]
[White "Stelmaszyk, Nico"]
[Black "Petri, Ben-Luca"]
[Result "1-0"]
[ECO "C11"]
[WhiteElo "2190"]
[BlackElo "1857"]
[Annotator "NA"]
[PlyCount "67"]
[EventDate "2019.10.02"]
[EventType "team-tourn"]
[EventRounds "7"]
[EventCountry "GER"]
[SourceTitle "playchess.com"]
[Source "ChessBase"]
[SourceQuality "1"]
[WhiteTeam "Germany"]
[BlackTeam "Germany"]
[WhiteTeamCountry "GER"]
[BlackTeamCountry "GER"]
[TimeControl "40/5400+30:1800+30"]

1. e4 {[%emt 0:00:00]} e6 {[%emt 0:00:00]} 2. Nf3 {[%emt 0:00:01]} d5 {[%emt 0:00:00]} 3. Nc3 {[%emt 0:00:06]} Nf6 {[%emt 0:00:05]} 4. e5 {[%emt 0:00:05]} Nfd7 {[%emt 0:00:03]} 5. d4 {[%emt 0:00:07]} c5 {[%emt 0:00:04]} 6. dxc5 {[%emt 0:00:04]} Nc6 {[%emt 0:00:08]} 7. Bf4 {[%emt 0:00:04]} Bxc5 {[%emt 0:00:05]} 8. Bd3 {[%emt 0:00:16]} f6 {[%emt 0:00:09]} 9. exf6 {[%emt 0:02:02]} Nxf6 {[%emt 0:00:04]} 10. O-O {[%emt 0:03:33]} O-O {[%emt 0:00:38]} 11. Qe2 {[%emt 0:06:38]} Nh5 {[%emt 0:04:34]} 12. Bg5 {[%emt 0:09:13]} Nf4 {[%emt 0:00:06]} 13. Qd2 {[%emt 0:11:06]} Qc7 {[%emt 0:03:21]} 14. Nb5 {[%emt 0:02:47]} Qf7 {[%emt 0:07:19]} 15. Bxf4 {[%emt 0:06:04]} Qxf4 {[%emt 0:00:21]} 16. Qxf4 {[%emt 0:00:05]} Rxf4 {[%emt 0:00:13]} 17. Nc7 {[%emt 0:00:14]} Rb8 {[%emt 0:01:15]} 18. Ng5 {[%emt 0:00:10]} Rf6 {[%emt 0:06:30]} 19. Rae1 {[%emt 0:03:56]} e5 {[%emt 0:01:24]} 20. Nxd5 {[%emt 0:01:00]} Rh6 {[%emt 0:02:00]} 21. Bc4 {[%emt 0:05:17]} Kf8 {[%emt 0:00:19]} 22. Ne4 {[%emt 0:03:34]} b5 {[%emt 0:09:47]} 23. Bb3 {[%emt 0:05:13]} Bb6 {[%emt 0:07:14]} 24. Nxb6 {[%emt 0:01:41]} axb6 {[%emt 0:02:31]} 25. f4 {[%emt 0:01:40]} Ke7 {[%emt 0:02:14]} 26. fxe5 {[%emt 0:02:00]} Nd8 {[%emt 0:02:49]} 27. Nd6 {[%emt 0:01:09]} Bd7 {[%emt 0:02:15]} 28. Nf7 {[%emt 0:01:56]} Rg6 {[%emt 0:00:42]} 29. Nxd8 {[%emt 0:01:15]} Kxd8 {[%emt 0:00:24]} 30. e6 {[%emt 0:00:34]} Bc6 {[%emt 0:00:47]} 31. g3 {[%emt 0:00:32]} Rf6 {[%emt 0:00:27]} 32. e7+ {[%emt 0:01:37]} Ke8 {[%emt 0:00:50]} 33. Rxf6 {[%emt 0:01:03]} gxf6 {[%emt 0:00:10]} 34. Re6 {[%emt 0:02:29] unterminated} 1-0

[Event "GER-chT Youth Countries 2019"]
[Site "Wuerzburg"]
[Date "2019.10.02"]
[Round "1"]
[White "Hoffmann, Sebastian"]
[Black "Vuckovic, Zarko"]
[Result "1/2-1/2"]
[ECO "C00"]
[WhiteElo "2187"]
[BlackElo "2253"]
[Annotator "NA"]
[PlyCount "82"]
[EventDate "2019.10.02"]
[EventType "swiss"]
[EventRounds "7"]
[EventCountry "GER"]
[SourceTitle "playchess.com"]
[Source "ChessBase"]
[SourceQuality "1"]
[WhiteTeam "Bayern 2"]
[BlackTeam "Bayern 1"]
[WhiteTeamCountry "GER"]
[BlackTeamCountry "GER"]
[TimeControl "40/5400+30:1800+30"]

1. e4 {[%emt 0:00:00]} e6 {[%emt 0:02:28]} 2. Qe2 {[%emt 0:00:00]} c5 {[%emt 0:00:06]} 3. g3 {[%emt 0:00:03]} Nc6 {[%emt 0:00:12]} 4. Nf3 {[%emt 0:00:24]} Nf6 {[%emt 0:09:12]} 5. Bg2 {[%emt 0:00:25]} d5 {[%emt 0:00:43]} 6. d3 {[%emt 0:00:15]} Be7 {[%emt 0:03:49]} 7. O-O {[%emt 0:00:07]} O-O {[%emt 0:01:26]} 8. e5 {[%emt 0:00:06]} Nd7 {[%emt 0:00:07]} 9. c4 {[%emt 0:00:04]} d4 {[%emt 0:13:00]} 10. h4 {[%emt 0:00:47]} f6 {[%emt 0:07:31]} 11. exf6 {[%emt 0:03:11]} Nxf6 {[%emt 0:00:02]} 12. Bf4 {[%emt 0:18:19]} Ng4 {[%emt 0:01:59]} 13. Ng5 {[%emt 0:06:46]} e5 {[%emt 0:02:14]} 14. Bc1 {[%emt 0:11:26]} Nf6 {[%emt 0:05:49]} 15. Ne4 {[%emt 0:12:27]} Bf5 {[%emt 0:07:56]} 16. Nbd2 {[%emt 0:02:53]} Qd7 {[%emt 0:07:29]} 17. Nxf6+ {[%emt 0:01:25]} gxf6 {[%emt 0:01:23]} 18. Ne4 {[%emt 0:09:54]} Kh8 {[%emt 0:00:40]} 19. Bd2 {[%emt 0:04:10]} Rg8 {[%emt 0:07:18]} 20. Kh2 {[%emt 0:00:26]} Rae8 {[%emt 0:06:12]} 21. Rae1 {[%emt 0:01:21]} Bg4 {[%emt 0:05:16]} 22. f3 {[%emt 0:01:37]} Be6 {[%emt 0:02:43]} 23. Qf2 {[%emt 0:00:55]} Rg7 {[%emt 0:08:15]} 24. f4 {[%emt 0:02:00]} exf4 {[%emt 0:02:31]} 25. Bxf4 {[%emt 0:00:26]} Reg8 {[%emt 0:00:47]} 26. a3 {[%emt 0:06:03]} Ne5 {[%emt 0:00:44]} 27. Bxe5 {[%emt 0:00:18]} fxe5 {[%emt 0:00:04]} 28. Nf6 {[%emt 0:00:46]} Bxf6 {[%emt 0:03:02]} 29. Qxf6 {[%emt 0:00:04]} Qf7 {[%emt 0:00:01]} 30. Rxe5 {[%emt 0:04:46]} Qxf6 {[%emt 0:00:35]} 31. Rxf6 {[%emt 0:00:02]} Rxg3 {[%emt 0:00:08]} 32. Rg5 {[%emt 0:05:18]} R3xg5 {[%emt 0:00:05]} 33. hxg5 {[%emt 0:00:05]} Re8 {[%emt 0:00:28]} 34. Bxb7 {[%emt 0:01:27]} Kg7 {[%emt 0:00:16]} 35. Be4 {[%emt 0:02:43]} Bxc4 {[%emt 0:00:18]} 36. Rc6 {[%emt 0:01:03]} Re5 {[%emt 0:01:55]} 37. Kg3 {[%emt 0:02:46]} Bxd3 {[%emt 0:00:59]} 38. Rc7+ {[%emt 0:00:06]} Kg8 {[%emt 0:00:19]} 39. Bxd3 {[%emt 0:00:08]} Re3+ {[%emt 0:00:03]} 40. Kf4 {[%emt 0:00:07]} Rxd3 {[%emt 0:00:06]} 41. Rxc5 {[%emt 0:30:50]} Rb3 {[%emt 0:30:23] normal} 1/2-1/2

[Event "GER-chT Youth Countries 2019"]
[Site "Wuerzburg"]
[Date "2019.10.02"]
[Round "1"]
[White "Dahl, Christoph"]
[Black "Tschernatsch, Johannes"]
[Result "0-1"]
[ECO "B96"]
[WhiteElo "2178"]
[BlackElo "2132"]
[Annotator "NA"]
[PlyCount "72"]
[EventDate "2019.10.02"]
[EventType "swiss"]
[EventRounds "7"]
[EventCountry "GER"]
[SourceTitle "playchess.com"]
[Source "ChessBase"]
[SourceQuality "1"]
[WhiteTeam "Sachsen"]
[BlackTeam "Brandenburg/Berlin"]
[WhiteTeamCountry "GER"]
[BlackTeamCountry "GER"]
[TimeControl "40/5400+30:1800+30"]

1. e4 {[%emt 0:00:00]} c5 {[%emt 0:00:00]} 2. Nf3 {[%emt 0:00:00]} d6 {[%emt 0:00:00]} 3. d4 {[%emt 0:00:00]} cxd4 {[%emt 0:00:00]} 4. Nxd4 {[%emt 0:00:00]} Nf6 {[%emt 0:00:00]} 5. Nc3 {[%emt 0:00:12]} a6 {[%emt 0:00:03]} 6. Bg5 {[%emt 0:00:16]} e6 {[%emt 0:00:09]} 7. f4 {[%emt 0:00:32]} b5 {[%emt 0:00:15]} 8. e5 {[%emt 0:03:38]} dxe5 {[%emt 0:00:07]} 9. fxe5 {[%emt 0:00:01]} Qc7 {[%emt 0:00:13]} 10. exf6 {[%emt 0:02:24]} Qe5+ {[%emt 0:00:08]} 11. Be2 {[%emt 0:00:07]} Qxg5 {[%emt 0:00:07]} 12. Bf3 {[%emt 0:00:29]} Ra7 {[%emt 0:03:50]} 13. Qd3 {[%emt 0:06:49]} Rd7 {[%emt 0:05:34]} 14. Ne4 {[%emt 0:02:12]} Qe5 {[%emt 0:04:38]} 15. O-O-O {[%emt 0:03:01]} gxf6 {[%emt 0:09:33]} 16. Qc3 {[%emt 0:03:01]} Bb7 {[%emt 0:21:16]} 17. Rhe1 {[%emt 0:23:56]} Bxe4 {[%emt 0:02:11]} 18. Rxe4 {[%emt 0:01:41]} Bh6+ {[%emt 0:13:00]} 19. Kb1 {[%emt 0:00:10]} Qc7 {[%emt 0:00:19]} 20. Qe1 {[%emt 0:34:34]} O-O {[%emt 0:11:07]} 21. Qh4 {[%emt 0:01:10]} Bg7 {[%emt 0:02:07]} 22. Qh5 {[%emt 0:02:50]} Rfd8 {[%emt 0:02:52]} 23. Rg4 {[%emt 0:03:25]} Qe5 {[%emt 0:01:54]} 24. Rxg7+ {[%emt 0:03:55]} Kxg7 {[%emt 0:00:23]} 25. Qg4+ {[%emt 0:00:05]} Qg5 {[%emt 0:02:03]} 26. Qe4 {[%emt 0:00:13]} e5 {[%emt 0:00:40]} 27. h4 {[%emt 0:00:05]} Qg6 {[%emt 0:01:33]} 28. Nf5+ {[%emt 0:01:23]} Qxf5 {[%emt 0:00:17]} 29. Rxd7 {[%emt 0:00:04]} Qxd7 {[%emt 0:01:21]} 30. a3 {[%emt 0:00:46]} Qd4 {[%emt 0:00:15]} 31. Qe1 {[%emt 0:00:47]} Qf4 {[%emt 0:00:24]} 32. Qa5 {[%emt 0:00:12]} Rd6 {[%emt 0:00:38]} 33. Bh5 {[%emt 0:00:42]} e4 {[%emt 0:01:16]} 34. Ka2 {[%emt 0:00:06]} e3 {[%emt 0:01:20]} 35. g3 {[%emt 0:00:21]} Qc4+ {[%emt 0:00:15]} 36. Kb1 {[%emt 0:00:04]} e2 {[%emt 0:00:13] normal} 0-1

[Event "GER-chT Youth Countries 2019"]
[Site "Wuerzburg"]
[Date "2019.10.02"]
[Round "1"]
[White "Weihrauch, Jakob"]
[Black "Svane, Frederik"]
[Result "0-1"]
[ECO "B91"]
[WhiteElo "2167"]
[BlackElo "2360"]
[Annotator "ChessBase"]
[PlyCount "82"]
[EventDate "2019.10.02"]
[EventType "team-tourn"]
[EventRounds "7"]
[EventCountry "GER"]
[SourceTitle "playchess.com"]
[Source "ChessBase"]
[SourceQuality "1"]
[WhiteTeam "Hamburg/Schleswig-Holstein"]
[BlackTeam "Schleswig-Holstein"]
[WhiteTeamCountry "GER"]
[BlackTeamCountry "GER"]
[TimeControl "40/5400+30:1800+30"]

1. e4 {[%emt 0:00:00]} c5 {[%emt 0:00:00]} 2. Nf3 {[%emt 0:00:00]} d6 {[%emt 0:00:00]} 3. d4 {[%emt 0:00:00]} cxd4 {[%emt 0:00:00]} 4. Nxd4 {[%emt 0:00:00]} Nf6 {[%emt 0:00:00]} 5. Nc3 {[%emt 0:00:00]} a6 {[%emt 0:00:03]} 6. g3 {[%emt 0:00:20]} e6 {[%emt 0:00:07]} 7. Bg2 {[%emt 0:00:08]} Be7 {[%emt 0:00:07]} 8. O-O {[%emt 0:00:12]} O-O {[%emt 0:00:08]} 9. f4 {[%emt 0:00:19]} Nc6 {[%emt 0:00:07]} 10. Nxc6 {[%emt 0:01:04]} bxc6 {[%emt 0:00:06]} 11. Na4 {[%emt 0:01:40]} Rb8 {[%emt 0:29:14]} 12. c4 {[%emt 0:11:43]} c5 {[%emt 0:04:17]} 13. Be3 {[%emt 0:03:37]} Bb7 {[%emt 0:01:04]} 14. Nc3 {[%emt 0:01:12]} Bc6 {[%emt 0:07:21]} 15. Qe2 {[%emt 0:07:01]} Qb6 {[%emt 0:02:43]} 16. Rab1 {[%emt 0:01:14]} Qb7 {[%emt 0:00:07]} 17. Bf2 {[%emt 0:03:20]} Rfe8 {[%emt 0:02:19]} 18. g4 {[%emt 0:02:03]} Nd7 {[%emt 0:01:51]} 19. Rfd1 {[%emt 0:08:03]} Nf8 {[%emt 0:01:50]} 20. Bg3 {[%emt 0:09:26]} Ng6 {[%emt 0:04:08]} 21. g5 {[%emt 0:01:55]} Bd8 {[%emt 0:16:16]} 22. h4 {[%emt 0:04:03]} Ba5 {[%emt 0:00:39]} 23. Qc2 {[%emt 0:03:45]} Red8 {[%emt 0:09:54]} 24. h5 {[%emt 0:02:10]} Nf8 {[%emt 0:00:05]} 25. h6 {[%emt 0:03:46]} g6 {[%emt 0:00:04]} 26. Ne2 {[%emt 0:08:41]} Qe7 {[%emt 0:01:39]} 27. b4 {[%emt 0:02:05]} Rxb4 {[%emt 0:02:46]} 28. Rxb4 {[%emt 0:01:01]} cxb4 {[%emt 0:00:04]} 29. Qb2 {[%emt 0:00:45]} e5 {[%emt 0:00:08]} 30. fxe5 {[%emt 0:00:31]} dxe5 {[%emt 0:00:03]} 31. Rxd8 {[%emt 0:01:06]} Bxd8 {[%emt 0:00:04]} 32. Bxe5 {[%emt 0:00:29]} Qxg5 {[%emt 0:03:35]} 33. Bf4 {[%emt 0:00:14]} Qc5+ {[%emt 0:00:04]} 34. Kf1 {[%emt 0:01:26]} Ne6 {[%emt 0:00:29]} 35. Bh3 {[%emt 0:00:50]} Bb6 {[%emt 0:04:33]} 36. Ke1 {[%emt 0:02:45]} Qf2+ {[%emt 0:05:51]} 37. Kd2 {[%emt 0:01:39]} Nd4 {[%emt 0:00:08]} 38. Bg4 {[%emt 0:00:12]} Bxe4 {[%emt 0:00:34]} 39. Be3 {[%emt 0:00:45]} Nf3+ {[%emt 0:00:05]} 40. Bxf3 {[%emt 0:00:26]} Bxe3+ {[%emt 0:00:05]} 41. Kd1 {[%emt 0:30:08]} Qf1# {normal} 0-1

[Event "GER-chT Youth Countries 2019"]
[Site "Wuerzburg"]
[Date "2019.10.02"]
[Round "1"]
[White "Lohvinov, Petro"]
[Black "Danninger, Jannik"]
[Result "0-1"]
[ECO "B76"]
[WhiteElo "2117"]
[BlackElo "1990"]
[Annotator "NA"]
[PlyCount "72"]
[EventDate "2019.10.02"]
[EventType "team-tourn"]
[EventRounds "7"]
[EventCountry "GER"]
[SourceTitle "playchess.com"]
[Source "ChessBase"]
[SourceQuality "1"]
[WhiteTeam "Germany"]
[BlackTeam "Germany"]
[WhiteTeamCountry "GER"]
[BlackTeamCountry "GER"]
[TimeControl "40/5400+30:1800+30"]

1. e4 {[%emt 0:00:00]} c5 {[%emt 0:00:00]} 2. Nf3 {[%emt 0:00:00]} d6 {[%emt 0:00:00]} 3. d4 {[%emt 0:00:04]} cxd4 {[%emt 0:00:10]} 4. Nxd4 {[%emt 0:00:02]} Nf6 {[%emt 0:00:19]} 5. Nc3 {[%emt 0:00:18]} g6 {[%emt 0:00:16]} 6. Be3 {[%emt 0:00:39]} Bg7 {[%emt 0:00:10]} 7. f3 {[%emt 0:00:07]} O-O {[%emt 0:00:29]} 8. Qd2 {[%emt 0:00:10]} Nc6 {[%emt 0:00:14]} 9. O-O-O {[%emt 0:00:07]} d5 {[%emt 0:00:17]} 10. Kb1 {[%emt 0:00:01]} e6 {[%emt 0:04:01]} 11. Bg5 {[%emt 0:34:26]} Qb6 {[%emt 0:08:50]} 12. Be3 {[%emt 0:09:50]} Qd8 {[%emt 0:06:17]} 13. Nxc6 {[%emt 0:10:46]} bxc6 {[%emt 0:00:18]} 14. Bh6 {[%emt 0:01:01]} Rb8 {[%emt 0:03:15]} 15. Bxg7 {[%emt 0:01:54]} Kxg7 {[%emt 0:00:35]} 16. e5 {[%emt 0:09:40]} Nd7 {[%emt 0:01:31]} 17. f4 {[%emt 0:02:29]} Qb6 {[%emt 0:02:30]} 18. b3 {[%emt 0:04:25]} Ba6 {[%emt 0:01:51]} 19. Bxa6 {[%emt 0:01:43]} Qxa6 {[%emt 0:00:09]} 20. h4 {[%emt 0:00:50]} c5 {[%emt 0:02:04]} 21. h5 {[%emt 0:01:40]} f5 {[%emt 0:01:09]} 22. hxg6 {[%emt 0:06:31]} hxg6 {[%emt 0:00:19]} 23. g4 {[%emt 0:01:08]} c4 {[%emt 0:00:46]} 24. gxf5 {[%emt 0:00:34]} Rxf5 {[%emt 0:01:13]} 25. Rdg1 {[%emt 0:04:50]} cxb3 {[%emt 0:02:11]} 26. axb3 {[%emt 0:02:26]} Qc4 {[%emt 0:05:07]} 27. Ne2 {[%emt 0:03:05]} Nf8 {[%emt 0:05:09]} 28. Nd4 {[%emt 0:00:35]} Rf7 {[%emt 0:00:34]} 29. f5 {[%emt 0:01:35]} Rxf5 {[%emt 0:01:43]} 30. Nxf5+ {[%emt 0:00:34]} exf5 {[%emt 0:00:38]} 31. Rh3 {[%emt 0:01:31]} Qc5 {[%emt 0:04:30]} 32. Qg5 {[%emt 0:01:18]} Rb6 {[%emt 0:01:51]} 33. Rf1 {[%emt 0:01:23]} Kf7 {[%emt 0:01:06]} 34. Qe3 {[%emt 0:00:46]} Qxe3 {[%emt 0:03:04]} 35. Rxe3 {[%emt 0:00:00]} Ke6 {[%emt 0:00:10]} 36. Rg1 {[%emt 0:00:57]} Rb4 {[%emt 0:04:22] normal} 0-1

[Event "GER-chT Youth Countries 2019"]
[Site "Wuerzburg"]
[Date "2019.10.02"]
[Round "1"]
[White "Wendler, David"]
[Black "Gallasch, Jonas"]
[Result "0-1"]
[ECO "B22"]
[WhiteElo "2107"]
[BlackElo "2099"]
[Annotator "NA"]
[PlyCount "84"]
[EventDate "2019.10.02"]
[EventType "swiss"]
[EventRounds "7"]
[EventCountry "GER"]
[SourceTitle "playchess.com"]
[Source "ChessBase"]
[SourceQuality "1"]
[WhiteTeam "Team Süd"]
[BlackTeam "Nordrhein-Westfalen"]
[WhiteTeamCountry "GER"]
[BlackTeamCountry "GER"]
[TimeControl "40/5400+30:1800+30"]

1. e4 {[%emt 0:00:23]} c5 {[%emt 0:00:00]} 2. c3 {[%emt 0:00:45]} d5 {[%emt 0:00:00]} 3. exd5 {[%emt 0:00:09]} Qxd5 {[%emt 0:00:02]} 4. d4 {[%emt 0:00:07]} Nc6 {[%emt 0:00:07]} 5. Nf3 {[%emt 0:00:34]} Bf5 {[%emt 0:00:30]} 6. Be3 {[%emt 0:03:38]} cxd4 {[%emt 0:01:00]} 7. cxd4 {[%emt 0:08:24]} Bxb1 {[%emt 0:00:43]} 8. Qxb1 {[%emt 0:18:45]} e6 {[%emt 0:01:26]} 9. a3 {[%emt 0:01:48]} Nf6 {[%emt 0:05:52]} 10. Be2 {[%emt 0:08:23]} Be7 {[%emt 0:02:51]} 11. O-O {[%emt 0:00:23]} O-O {[%emt 0:00:54]} 12. b4 {[%emt 0:06:04]} Rac8 {[%emt 0:09:42]} 13. Qd3 {[%emt 0:07:22]} Rfd8 {[%emt 0:04:57]} 14. Rac1 {[%emt 0:14:22]} Qd6 {[%emt 0:05:49]} 15. Rc4 {[%emt 0:07:50]} Nd5 {[%emt 0:15:19]} 16. Rfc1 {[%emt 0:01:02]} a5 {[%emt 0:01:41]} 17. b5 {[%emt 0:03:02]} Na7 {[%emt 0:02:31]} 18. Ne5 {[%emt 0:03:12]} Qxa3 {[%emt 0:13:50]} 19. Bd2 {[%emt 0:05:47]} b6 {[%emt 0:14:19]} 20. Qb1 {[%emt 0:02:05]} Bf6 {[%emt 0:05:11]} 21. Nc6 {[%emt 0:03:38]} Nxc6 {[%emt 0:01:58]} 22. bxc6 {[%emt 0:00:04]} Qe7 {[%emt 0:06:09]} 23. Bf3 {[%emt 0:00:13]} Qc7 {[%emt 0:00:16]} 24. g3 {[%emt 0:00:23]} Be7 {[%emt 0:00:37]} 25. Qb5 {[%emt 0:02:26]} Bb4 {[%emt 0:03:03]} 26. Bxb4 {[%emt 0:01:27]} Nxb4 {[%emt 0:00:09]} 27. Re1 {[%emt 0:00:36]} Rd6 {[%emt 0:02:18]} 28. Re5 {[%emt 0:00:06]} Rcd8 {[%emt 0:00:50]} 29. Re4 {[%emt 0:00:57]} Rd5 {[%emt 0:00:14]} 30. Rxb4 {[%emt 0:00:17]} Rxb5 {[%emt 0:00:20]} 31. Rxb5 {[%emt 0:00:08]} Qxc6 {[%emt 0:00:11]} 32. Rb3 {[%emt 0:01:04]} a4 {[%emt 0:00:30]} 33. Rd3 {[%emt 0:00:31]} Qc4 {[%emt 0:01:06]} 34. Rd1 {[%emt 0:00:25]} f5 {[%emt 0:01:33]} 35. Ree1 {[%emt 0:00:31]} Rxd4 {[%emt 0:00:42]} 36. Rc1 {[%emt 0:00:06]} Qb3 {[%emt 0:00:18]} 37. Bd1 {[%emt 0:00:47]} Qd5 {[%emt 0:00:25]} 38. Be2 {[%emt 0:00:34]} a3 {[%emt 0:00:38]} 39. Rc7 {[%emt 0:00:20]} a2 {[%emt 0:00:46]} 40. Ra7 {[%emt 0:00:04]} h6 {[%emt 0:00:34]} 41. Bh5 {[%emt 0:01:49]} Kh7 {[%emt 0:00:59]} 42. Rc1 {[%emt 0:01:26]} Rb4 {[%emt 0:00:15] normal} 0-1